bitfinex-derivatives/quotes_BTCF0:USTF0_20251228
["timestamp","ask_amount","ask_price","bid_price","bid_amount"]
[1766905382261,0.0114053,87749.0,87735.0,0.15404]
[1766905389065,0.0114049,87752.0,87735.0,0.15404]
[1766905392366,0.0114049,87752.0,87735.0,0.165447]
[1766905393174,0.02458985,87751.0,87735.0,0.165447]
[1766905393370,0.0114049,87752.0,87735.0,0.165447]
[1766905393671,0.02459066,87751.0,87735.0,0.165447]
[1766905393969,0.0114049,87752.0,87735.0,0.165447]
[1766905394170,0.02459066,87751.0,87735.0,0.165447]
[1766905394366,0.0114049,87752.0,87735.0,0.165447]
[1766905394568,0.02459159,87751.0,87735.0,0.165447]
[1766905394764,0.0114049,87752.0,87735.0,0.165447]
[1766905394964,0.02459161,87751.0,87735.0,0.165447]
[1766905395265,0.0114049,87752.0,87735.0,0.165447]
[1766905395465,0.02459267,87751.0,87735.0,0.165447]
[1766905395661,0.0114049,87752.0,87735.0,0.165447]
[1766905395864,0.02459232,87751.0,87735.0,0.165447]
[1766905396063,0.0114049,87752.0,87735.0,0.165447]
[1766905396272,0.02459231,87751.0,87735.0,0.165447]
[1766905396472,0.0114049,87752.0,87737.0,0.0114067]
[1766905396674,0.02459352,87751.0,87737.0,0.0114067]
[1766905396873,0.0114049,87752.0,87737.0,0.0114067]
[1766905397072,0.0245935,87751.0,87737.0,0.0114067]
[1766905397274,0.0114049,87752.0,87737.0,0.0114067]
[1766905397575,0.02459486,87751.0,87737.0,0.0114067]
[1766905397780,0.0114049,87752.0,87737.0,0.0114067]
[1766905397981,0.02459485,87751.0,87737.0,0.0114067]
[1766905398281,0.0114049,87752.0,87737.0,0.0114067]
[1766905398482,0.0245964,87751.0,87737.0,0.0114067]
[1766905398679,0.0114049,87752.0,87737.0,0.0114067]
[1766905398980,0.0245964,87751.0,87737.0,0.0114067]
[1766905399181,0.0114049,87752.0,87737.0,0.0114067]
[1766905399378,0.02459688,87751.0,87737.0,0.0114067]
[1766905399678,0.0114049,87752.0,87737.0,0.0114067]
[1766905399868,0.02459796,87751.0,87737.0,0.0114067]
[1766905400071,0.0114049,87752.0,87737.0,0.0114067]
[1766905400268,0.02459796,87751.0,87737.0,0.0114067]
[1766905400477,0.0114049,87752.0,87737.0,0.0114067]
[1766905400681,0.02459967,87751.0,87737.0,0.0114067]
[1766905400883,0.0114049,87752.0,87737.0,0.0114067]
[1766905401072,0.02459975,87751.0,87737.0,0.0114067]
[1766905401268,0.0114049,87752.0,87737.0,0.0114067]
[1766905401475,0.02460175,87751.0,87737.0,0.0114067]
[1766905401683,0.0114049,87752.0,87737.0,0.0114067]
[1766905401981,0.02460175,87751.0,87737.0,0.0114067]
[1766905402184,0.0114049,87752.0,87737.0,0.0114067]
[1766905402382,0.02460213,87751.0,87737.0,0.0114067]
[1766905402578,0.02460213,87750.0,87737.0,0.0114067]
[1766905402785,0.0114049,87752.0,87737.0,0.0114067]
[1766905402982,0.02460409,87751.0,87737.0,0.0114067]
[1766905403284,0.02460409,87750.0,87737.0,0.0114067]
[1766905403485,0.0114045,87755.0,87737.0,0.0114067]
[1766905403687,0.02460687,87754.0,87737.0,0.0114067]
[1766905403880,0.02460687,87753.0,87737.0,0.0114067]
[1766905404085,0.02460687,87752.0,87737.0,0.0114067]
[1766905404287,0.02460687,87751.0,87737.0,0.0114067]
[1766905404486,0.02460687,87750.0,87737.0,0.0114067]
[1766905404686,0.0114045,87755.0,87737.0,0.0114067]
[1766905404887,0.02460736,87754.0,87737.0,0.0114067]
[1766905405079,0.02460736,87753.0,87737.0,0.0114067]
[1766905405281,0.02460736,87752.0,87737.0,0.0114067]
[1766905405581,0.02460736,87751.0,87739.0,0.0114064]
[1766905405780,0.02460736,87750.0,87739.0,0.0114064]
[1766905406081,0.0114045,87755.0,87739.0,0.0114064]
[1766905406281,0.02460842,87754.0,87739.0,0.0114064]
[1766905406586,0.02460842,87753.0,87739.0,0.0114064]
[1766905406788,0.02460842,87752.0,87739.0,0.0114064]
[1766905406988,0.02460842,87751.0,87739.0,0.0114064]
[1766905407287,0.02460842,87750.0,87741.0,0.0114062]
[1766905407478,0.0114045,87755.0,87741.0,0.0114062]
[1766905407680,0.02461175,87754.0,87741.0,0.0114062]
[1766905407885,0.02461175,87753.0,87741.0,0.0114062]
[1766905408084,0.02461175,87752.0,87741.0,0.0114062]
[1766905408385,0.02461175,87751.0,87741.0,0.0114062]
[1766905408689,0.02461175,87750.0,87741.0,0.0114062]
[1766905408889,0.02461175,87749.0,87741.0,0.0114062]
[1766905409084,0.11445881,87760.0,87743.0,0.0114059]
[1766905409386,0.0246139,87759.0,87743.0,0.0114059]
[1766905409585,0.0246139,87758.0,87743.0,0.0114059]
[1766905410590,0.0246139,87758.0,87745.0,0.0114057]
[1766905411290,0.0246139,87758.0,87742.0,0.0114061]
[1766905417900,0.0246139,87758.0,87744.0,0.0114058]
[1766905418899,0.0246139,87758.0,87746.0,0.0114055]
[1766905419099,0.0246139,87757.0,87746.0,0.0114055]
[1766905419300,0.0246139,87756.0,87746.0,0.0114055]
[1766905419494,0.0246139,87755.0,87746.0,0.0114055]
[1766905419700,0.0246139,87754.0,87746.0,0.0114055]
[1766905419901,0.0246139,87753.0,87746.0,0.0114055]
[1766905420101,0.0246139,87752.0,87746.0,0.0114055]
[1766905420302,0.12586261,87760.0,87746.0,0.0114055]
[1766905422006,0.12586261,87760.0,87743.0,0.0114059]
[1766905426410,0.0114042,87757.0,87743.0,0.0114059]
[1766905432215,0.02456718,87756.0,87743.0,0.0114059]
[1766905432408,0.02456718,87755.0,87743.0,0.0114059]
[1766905432609,0.02456718,87754.0,87740.0,0.0114063]
[1766905432908,0.02456718,87753.0,87740.0,0.0114063]
[1766905433109,0.02456718,87752.0,87740.0,0.0114063]
[1766905433311,0.02456718,87751.0,87740.0,0.0114063]
[1766905433512,0.02456718,87750.0,87740.0,0.0114063]
[1766905433813,0.0114042,87757.0,87740.0,0.0114063]
[1766905434012,0.02456719,87756.0,87740.0,0.0114063]
[1766905434214,0.02456719,87755.0,87740.0,0.0114063]
[1766905434414,0.02456719,87754.0,87740.0,0.0114063]
[1766905434619,0.02456719,87753.0,87740.0,0.0114063]
[1766905434815,0.02456719,87752.0,87740.0,0.0114063]
[1766905435017,0.02456719,87751.0,87740.0,0.0114063]
[1766905435316,0.02456719,87750.0,87740.0,0.0114063]
[1766905435516,0.0114044,87755.0,87740.0,0.0114063]
[1766905435716,0.0245673,87754.0,87740.0,0.0114063]
[1766905435918,0.0245673,87753.0,87740.0,0.0114063]
[1766905436216,0.0245673,87752.0,87740.0,0.0114063]
[1766905436418,0.0245673,87751.0,87740.0,0.0114063]
[1766905436715,0.0245673,87750.0,87740.0,0.0114063]
[1766905436913,0.0114044,87755.0,87740.0,0.0114063]
[1766905437220,0.0245674,87754.0,87740.0,0.0114063]
[1766905437420,0.0245674,87753.0,87740.0,0.0114063]
[1766905437614,0.0245674,87752.0,87740.0,0.0114063]
[1766905437809,0.0245674,87751.0,87740.0,0.0114063]
[1766905438006,0.0114041,87758.0,87740.0,0.0114063]
[1766905438214,0.02456753,87757.0,87740.0,0.0114063]
[1766905438416,0.02456753,87756.0,87740.0,0.0114063]
[1766905438617,0.02456753,87755.0,87740.0,0.0114063]
[1766905438825,0.02456753,87754.0,87740.0,0.0114063]
[1766905439018,0.02456753,87753.0,87740.0,0.0114063]
[1766905439217,0.02456753,87752.0,87740.0,0.0114063]
[1766905439418,0.02456753,87751.0,87740.0,0.0114063]
[1766905439621,0.0114041,87758.0,87740.0,0.0114063]
[1766905439811,0.02456783,87757.0,87742.0,0.0114061]
[1766905440011,0.02456783,87756.0,87742.0,0.0114061]
[1766905440308,0.0114041,87758.0,87742.0,0.0114061]
[1766905440309,0.02456783,87755.0,87742.0,0.0114061]
[1766905440507,0.02456783,87754.0,87742.0,0.0114061]
[1766905440722,0.02456783,87753.0,87742.0,0.0114061]
[1766905441021,0.02456783,87752.0,87742.0,0.0114061]
[1766905441225,0.02456783,87751.0,87742.0,0.0114061]
[1766905441420,0.0114041,87758.0,87742.0,0.0114061]
[1766905441617,0.02456815,87757.0,87742.0,0.0114061]
[1766905441818,0.02456815,87756.0,87742.0,0.0114061]
[1766905442117,0.02456815,87755.0,87742.0,0.0114061]
[1766905442317,0.02456815,87754.0,87742.0,0.0114061]
[1766905442616,0.02456815,87753.0,87742.0,0.0114061]
[1766905442820,0.02456815,87752.0,87742.0,0.0114061]
[1766905443018,0.02456815,87751.0,87742.0,0.0114061]
[1766905443219,0.02456815,87750.0,87742.0,0.0114061]
[1766905443420,0.0114041,87758.0,87742.0,0.0114061]
[1766905443620,0.02456869,87757.0,87742.0,0.0114061]
[1766905443921,0.02456869,87756.0,87742.0,0.0114061]
[1766905444120,0.02456869,87755.0,87742.0,0.0114061]
[1766905444319,0.02456869,87754.0,87742.0,0.0114061]
[1766905444519,0.02456869,87753.0,87742.0,0.0114061]
[1766905444723,0.02456869,87752.0,87742.0,0.0114061]
[1766905444922,0.02456869,87751.0,87742.0,0.0114061]
[1766905445215,0.02456869,87750.0,87742.0,0.0114061]
[1766905445414,0.0114041,87758.0,87742.0,0.0114061]
[1766905445615,0.02456952,87757.0,87742.0,0.0114061]
[1766905445815,0.02456952,87756.0,87742.0,0.0114061]
[1766905446017,0.02456952,87755.0,87742.0,0.0114061]
[1766905446218,0.02456952,87754.0,87742.0,0.0114061]
[1766905446419,0.02456952,87753.0,87742.0,0.0114061]
[1766905446618,0.02456952,87752.0,87742.0,0.0114061]
[1766905446819,0.02456952,87751.0,87742.0,0.0114061]
[1766905447021,0.0114041,87758.0,87742.0,0.0114061]
[1766905447223,0.02451998,87757.0,87742.0,0.0114061]
[1766905447419,0.02451998,87756.0,87742.0,0.0114061]
[1766905447720,0.02451998,87755.0,87742.0,0.0114061]
[1766905447919,0.02451998,87754.0,87742.0,0.0114061]
[1766905448120,0.02451998,87753.0,87742.0,0.0114061]
[1766905448317,0.02451998,87752.0,87742.0,0.0114061]
[1766905448524,0.02451998,87751.0,87742.0,0.0114061]
[1766905448724,0.02451998,87750.0,87742.0,0.0114061]
[1766905448927,0.0114041,87758.0,87742.0,0.0114061]
[1766905449127,0.0245226,87757.0,87742.0,0.0114061]
[1766905449324,0.0245226,87756.0,87742.0,0.0114061]
[1766905449629,0.0245226,87755.0,87742.0,0.0114061]
[1766905449829,0.0245226,87754.0,87742.0,0.0114061]
[1766905450129,0.0245226,87753.0,87742.0,0.0114061]
[1766905450319,0.0245226,87752.0,87742.0,0.0114061]
[1766905450520,0.0245226,87751.0,87742.0,0.0114061]
[1766905450819,0.0245226,87750.0,87742.0,0.0114061]
[1766905451020,0.0114041,87758.0,87742.0,0.0114061]
[1766905451320,0.02452261,87757.0,87742.0,0.0114061]
[1766905451631,0.02452261,87756.0,87742.0,0.0114061]
[1766905451820,0.02452261,87755.0,87742.0,0.0114061]
[1766905452022,0.02452261,87754.0,87742.0,0.0114061]
[1766905452321,0.02452261,87753.0,87742.0,0.0114061]
[1766905452523,0.02452261,87752.0,87742.0,0.0114061]
[1766905452831,0.02452261,87751.0,87742.0,0.0114061]
[1766905453035,0.02452261,87750.0,87742.0,0.0114061]
[1766905453234,0.0114041,87758.0,87742.0,0.0114061]
[1766905453436,0.02452261,87757.0,87742.0,0.0114061]
[1766905453636,0.02452261,87756.0,87742.0,0.0114061]
[1766905453855,0.02452261,87755.0,87742.0,0.0114061]
[1766905454036,0.02452261,87754.0,87742.0,0.0114061]
[1766905454241,0.02452261,87753.0,87742.0,0.0114061]
[1766905454529,0.02452261,87752.0,87742.0,0.0114061]
[1766905454724,0.02452261,87751.0,87742.0,0.0114061]
[1766905454937,0.02452261,87750.0,87742.0,0.0114061]
[1766905455122,0.0114041,87758.0,87742.0,0.0114061]
[1766905455324,0.02452262,87757.0,87742.0,0.0114061]
[1766905455520,0.02452262,87756.0,87742.0,0.0114061]
[1766905455725,0.02452262,87755.0,87742.0,0.0114061]
[1766905455933,0.02452262,87754.0,87742.0,0.0114061]
[1766905456134,0.02452262,87753.0,87742.0,0.0114061]
[1766905456429,0.02452262,87752.0,87742.0,0.0114061]
[1766905456637,0.02452262,87751.0,87742.0,0.0114061]
[1766905456838,0.02452262,87750.0,87742.0,0.0114061]
[1766905457032,0.0114041,87758.0,87742.0,0.0114061]
[1766905457232,0.02452266,87757.0,87742.0,0.0114061]
[1766905457433,0.02452266,87756.0,87742.0,0.0114061]
[1766905457630,0.02452266,87755.0,87742.0,0.0114061]
[1766905457831,0.02452266,87754.0,87742.0,0.0114061]
[1766905458031,0.02452266,87753.0,87742.0,0.0114061]
[1766905458331,0.02452266,87752.0,87742.0,0.0114061]
[1766905458630,0.02452266,87751.0,87742.0,0.0114061]
[1766905458937,0.02452266,87750.0,87742.0,0.0114061]
[1766905459137,0.0114041,87758.0,87742.0,0.0114061]
[1766905459337,0.02452271,87757.0,87742.0,0.0114061]
[1766905459539,0.02452271,87756.0,87742.0,0.0114061]
[1766905459730,0.02452271,87755.0,87742.0,0.0114061]
[1766905459931,0.02452271,87754.0,87742.0,0.0114061]
[1766905460230,0.02452271,87753.0,87742.0,0.0114061]
[1766905460430,0.02452271,87752.0,87739.0,0.0114064]
[1766905460630,0.02452271,87751.0,87739.0,0.0114064]
[1766905460831,0.02452271,87750.0,87739.0,0.0114064]
[1766905461130,0.0114043,87756.0,87739.0,0.0114064]
[1766905461429,0.02452274,87755.0,87739.0,0.0114064]
[1766905461624,0.02452274,87754.0,87739.0,0.0114064]
[1766905461829,0.02452274,87753.0,87739.0,0.0114064]
[1766905462131,0.02452274,87752.0,87739.0,0.0114064]
[1766905462428,0.02452274,87751.0,87739.0,0.0114064]
[1766905462630,0.02452274,87750.0,87739.0,0.0114064]
[1766905462829,0.0114043,87756.0,87739.0,0.0114064]
[1766905463026,0.02452274,87755.0,87739.0,0.0114064]
[1766905463228,0.02452274,87754.0,87739.0,0.0114064]
[1766905463428,0.02452274,87753.0,87739.0,0.0114064]
[1766905463637,0.02452274,87752.0,87739.0,0.0114064]
[1766905463844,0.02452274,87751.0,87739.0,0.0114064]
[1766905464038,0.02452274,87750.0,87739.0,0.0114064]
[1766905464238,0.0114043,87756.0,87739.0,0.0114064]
[1766905464540,0.02452273,87755.0,87739.0,0.0114064]
[1766905464736,0.02452273,87754.0,87739.0,0.0114064]
[1766905464935,0.02452273,87753.0,87739.0,0.0114064]
[1766905465236,0.02452273,87752.0,87739.0,0.0114064]
[1766905465434,0.02452273,87751.0,87739.0,0.0114064]
[1766905465637,0.02452273,87750.0,87739.0,0.0114064]
[1766905465837,0.0114043,87756.0,87739.0,0.0114064]
[1766905466038,0.02452273,87755.0,87739.0,0.0114064]
[1766905466228,0.02452273,87754.0,87739.0,0.0114064]
[1766905466429,0.02452273,87753.0,87739.0,0.0114064]
[1766905466626,0.02452273,87752.0,87739.0,0.0114064]
[1766905466832,0.02452273,87751.0,87739.0,0.0114064]
[1766905467038,0.02452273,87750.0,87739.0,0.0114064]
[1766905467239,0.0114043,87756.0,87739.0,0.0114064]
[1766905467441,0.02452273,87755.0,87739.0,0.0114064]
[1766905467638,0.0114043,87756.0,87739.0,0.0114064]
[1766905467639,0.02452273,87754.0,87739.0,0.0114064]
[1766905467831,0.02452273,87753.0,87739.0,0.0114064]
[1766905468029,0.02452273,87752.0,87741.0,0.0114061]
[1766905468231,0.02452273,87751.0,87741.0,0.0114061]
[1766905468536,0.02452273,87750.0,87741.0,0.0114061]
[1766905468738,0.011404,87759.0,87741.0,0.0114061]
[1766905473448,0.011404,87759.0,87738.0,0.154]
[1766905473449,0.011404,87759.0,87743.0,0.0114059]
[1766905474352,0.15404,87761.0,87745.0,0.0114057]
[1766905475246,0.0114039,87760.0,87745.0,0.0114057]
[1766905475448,0.0114041,87758.0,87742.0,0.011406]
[1766905480848,0.02444886,87757.0,87742.0,0.011406]
[1766905481147,0.02444886,87756.0,87742.0,0.011406]
[1766905481346,0.02444886,87755.0,87742.0,0.011406]
[1766905481546,0.02444886,87754.0,87742.0,0.011406]
[1766905481738,0.02444886,87753.0,87742.0,0.011406]
[1766905481937,0.02444886,87752.0,87742.0,0.011406]
[1766905482137,0.02444886,87751.0,87742.0,0.011406]
[1766905482449,0.02444886,87750.0,87742.0,0.011406]
[1766905482649,0.02444886,87749.0,87739.0,0.0114065]
[1766905482851,0.0114044,87756.0,87739.0,0.0114065]
[1766905483040,0.02444886,87755.0,87739.0,0.0114065]
[1766905483240,0.02444886,87754.0,87739.0,0.0114065]
[1766905483446,0.02444886,87753.0,87739.0,0.0114065]
[1766905483649,0.02444886,87752.0,87739.0,0.0114065]
[1766905483948,0.02444886,87751.0,87739.0,0.0114065]
[1766905484148,0.02444886,87750.0,87739.0,0.0114065]
[1766905484449,0.02444886,87749.0,87739.0,0.0114065]
[1766905484647,0.0114046,87754.0,87739.0,0.0114065]
[1766905484848,0.02444893,87753.0,87738.0,0.154]
[1766905485050,0.02444893,87752.0,87738.0,0.154]
[1766905485243,0.02444893,87751.0,87738.0,0.154]
[1766905485446,0.02444893,87750.0,87738.0,0.154]
[1766905485745,0.02444893,87749.0,87738.0,0.154]
[1766905485945,0.0114046,87754.0,87738.0,0.154]
[1766905486146,0.02444877,87753.0,87738.0,0.154]
[1766905486345,0.02444877,87752.0,87739.0,0.0114065]
[1766905486547,0.02444877,87751.0,87739.0,0.0114065]
[1766905486748,0.02444877,87750.0,87739.0,0.0114065]
[1766905487053,0.0114042,87757.0,87739.0,0.0114065]
[1766905487253,0.02444855,87756.0,87739.0,0.0114065]
[1766905487452,0.02444855,87755.0,87739.0,0.0114065]
[1766905487754,0.02444855,87754.0,87741.0,0.0114062]
[1766905487956,0.02444855,87753.0,87741.0,0.0114062]
[1766905488253,0.02444855,87752.0,87741.0,0.0114062]
[1766905488456,0.02444855,87751.0,87741.0,0.0114062]
[1766905488653,0.02444855,87750.0,87741.0,0.0114062]
[1766905488854,0.0114042,87757.0,87741.0,0.0114062]
[1766905489053,0.02444847,87756.0,87741.0,0.0114062]
[1766905489253,0.02444847,87755.0,87741.0,0.0114062]
[1766905489453,0.02444847,87754.0,87741.0,0.0114062]
[1766905489753,0.02444847,87753.0,87741.0,0.0114062]
[1766905490051,0.02444847,87752.0,87741.0,0.0114062]
[1766905490253,0.02444847,87751.0,87741.0,0.0114062]
[1766905490454,0.02444847,87750.0,87741.0,0.0114062]
[1766905490659,0.0114042,87757.0,87741.0,0.0114062]
[1766905490851,0.02444833,87756.0,87741.0,0.0114062]
[1766905491052,0.02444833,87755.0,87741.0,0.0114062]
[1766905491253,0.02444833,87754.0,87741.0,0.0114062]
[1766905491457,0.02444833,87753.0,87741.0,0.0114062]
[1766905491656,0.02444833,87752.0,87741.0,0.0114062]
[1766905491859,0.02444833,87751.0,87741.0,0.0114062]
[1766905492058,0.02444833,87750.0,87741.0,0.0114062]
[1766905492259,0.0114042,87757.0,87741.0,0.0114062]
[1766905492452,0.02444819,87756.0,87741.0,0.0114062]
[1766905492653,0.02444819,87755.0,87741.0,0.0114062]
[1766905492958,0.02444819,87754.0,87741.0,0.0114062]
[1766905493158,0.02444819,87753.0,87743.0,0.0114059]
[1766905493351,0.02444819,87752.0,87743.0,0.0114059]
[1766905493545,0.02444819,87751.0,87743.0,0.0114059]
[1766905493749,0.02444819,87750.0,87743.0,0.0114059]
[1766905493950,0.0114039,87760.0,87743.0,0.0114059]
[1766905494149,0.02444812,87759.0,87743.0,0.0114059]
[1766905494356,0.02444812,87758.0,87743.0,0.0114059]
[1766905494654,0.02444812,87757.0,87743.0,0.0114059]
[1766905494855,0.02444812,87756.0,87743.0,0.0114059]
[1766905495153,0.02444812,87755.0,87743.0,0.0114059]
[1766905495355,0.02444812,87754.0,87743.0,0.0114059]
[1766905495554,0.02444812,87753.0,87743.0,0.0114059]
[1766905495756,0.02444812,87752.0,87743.0,0.0114059]
[1766905495956,0.02444812,87751.0,87743.0,0.0114059]
[1766905496156,0.02444812,87750.0,87743.0,0.0114059]
[1766905496358,0.0114039,87760.0,87743.0,0.0114059]
[1766905496558,0.024448,87759.0,87743.0,0.0114059]
[1766905496758,0.024448,87758.0,87743.0,0.0114059]
[1766905496958,0.024448,87757.0,87743.0,0.0114059]
[1766905497258,0.024448,87756.0,87743.0,0.0114059]
[1766905497459,0.024448,87755.0,87743.0,0.0114059]
[1766905497661,0.024448,87754.0,87743.0,0.0114059]
[1766905497959,0.024448,87753.0,87743.0,0.0114059]
[1766905498261,0.024448,87752.0,87743.0,0.0114059]
[1766905498559,0.024448,87751.0,87743.0,0.0114059]
[1766905498760,0.024448,87750.0,87743.0,0.0114059]
[1766905498956,0.0114039,87760.0,87743.0,0.0114059]
[1766905499156,0.02444794,87759.0,87743.0,0.0114059]
[1766905499359,0.02444794,87758.0,87743.0,0.0114059]
[1766905499658,0.02444794,87757.0,87743.0,0.0114059]
[1766905499860,0.02444794,87756.0,87743.0,0.0114059]
[1766905500158,0.02444794,87755.0,87743.0,0.0114059]
[1766905500356,0.02444794,87754.0,87743.0,0.0114059]
[1766905500558,0.02444794,87753.0,87738.0,0.154]
[1766905500758,0.02444794,87752.0,87738.0,0.154]
[1766905500960,0.02444794,87751.0,87742.0,0.011406]
[1766905501159,0.02444794,87750.0,87742.0,0.011406]
[1766905501359,0.0114039,87760.0,87742.0,0.011406]
[1766905501659,0.02444788,87759.0,87742.0,0.011406]
[1766905501856,0.02444788,87758.0,87742.0,0.011406]
[1766905502057,0.02444788,87757.0,87742.0,0.011406]
[1766905502255,0.0114039,87760.0,87742.0,0.011406]
[1766905502256,0.02444788,87756.0,87742.0,0.011406]
[1766905502458,0.02444788,87755.0,87742.0,0.011406]
[1766905502655,0.02444788,87754.0,87742.0,0.011406]
[1766905502856,0.02444788,87753.0,87742.0,0.011406]
[1766905503058,0.02444788,87752.0,87742.0,0.011406]
[1766905503357,0.02444788,87751.0,87742.0,0.011406]
[1766905503560,0.02444788,87750.0,87742.0,0.011406]
[1766905503753,0.0114041,87758.0,87742.0,0.011406]
[1766905503954,0.02444786,87757.0,87742.0,0.011406]
[1766905504149,0.02444786,87756.0,87742.0,0.011406]
[1766905504354,0.02444786,87755.0,87742.0,0.011406]
[1766905504559,0.02444786,87754.0,87742.0,0.011406]
[1766905504759,0.02444786,87753.0,87742.0,0.011406]
[1766905505058,0.02444786,87752.0,87742.0,0.011406]
[1766905505258,0.02444786,87751.0,87742.0,0.011406]
[1766905505463,0.02444786,87750.0,87742.0,0.011406]
[1766905505657,0.0114041,87758.0,87742.0,0.011406]
[1766905505856,0.02444519,87757.0,87742.0,0.011406]
[1766905506059,0.02444519,87756.0,87742.0,0.011406]
[1766905506258,0.02444519,87755.0,87742.0,0.011406]
[1766905506561,0.02444519,87754.0,87742.0,0.011406]
[1766905506761,0.02444519,87753.0,87742.0,0.011406]
[1766905506962,0.02444519,87752.0,87742.0,0.011406]
[1766905507162,0.02444519,87751.0,87742.0,0.011406]
[1766905507363,0.02444519,87750.0,87742.0,0.011406]
[1766905507564,0.0114041,87758.0,87742.0,0.011406]
[1766905507765,0.02444537,87757.0,87742.0,0.011406]
[1766905507962,0.02444537,87756.0,87742.0,0.011406]
[1766905508260,0.02444537,87755.0,87742.0,0.011406]
[1766905508460,0.02444537,87754.0,87742.0,0.011406]
[1766905508661,0.02444537,87753.0,87742.0,0.011406]
[1766905508870,0.02444537,87752.0,87742.0,0.011406]
[1766905509167,0.02444537,87751.0,87742.0,0.011406]
[1766905509358,0.02444537,87750.0,87742.0,0.011406]
[1766905509559,0.0114041,87758.0,87742.0,0.011406]
[1766905509760,0.02444563,87757.0,87742.0,0.011406]
[1766905510056,0.02444563,87756.0,87742.0,0.011406]
[1766905510259,0.02444563,87755.0,87742.0,0.011406]
[1766905510462,0.02444563,87754.0,87742.0,0.011406]
[1766905510662,0.02444563,87753.0,87742.0,0.011406]
[1766905510861,0.02444563,87752.0,87742.0,0.011406]
[1766905511063,0.02444563,87751.0,87742.0,0.011406]
[1766905511263,0.02444563,87750.0,87742.0,0.011406]
[1766905511469,0.0114041,87758.0,87742.0,0.011406]
[1766905511658,0.02444604,87757.0,87742.0,0.011406]
[1766905511861,0.02444604,87756.0,87742.0,0.011406]
[1766905512160,0.02444604,87755.0,87742.0,0.011406]
[1766905512360,0.02444604,87754.0,87742.0,0.011406]
[1766905512562,0.02444604,87753.0,87742.0,0.011406]
[1766905512768,0.02444604,87752.0,87742.0,0.011406]
[1766905513069,0.02444604,87751.0,87742.0,0.011406]
[1766905513272,0.02444604,87750.0,87742.0,0.011406]
[1766905513470,0.1654437,87761.0,87742.0,0.011406]
[1766905513672,0.02444642,87760.0,87742.0,0.011406]
[1766905513883,0.02444642,87759.0,87742.0,0.011406]
[1766905514066,0.02444642,87758.0,87742.0,0.011406]
[1766905514365,0.02444642,87757.0,87742.0,0.011406]
[1766905514565,0.02444642,87756.0,87742.0,0.011406]
[1766905514765,0.02444642,87755.0,87742.0,0.011406]
[1766905514965,0.02444642,87754.0,87742.0,0.011406]
[1766905515165,0.02444642,87753.0,87742.0,0.011406]
[1766905515367,0.02444642,87752.0,87742.0,0.011406]
[1766905515670,0.02444642,87751.0,87742.0,0.011406]
[1766905515872,0.02444642,87750.0,87742.0,0.011406]
[1766905516072,0.011404,87759.0,87742.0,0.011406]
[1766905516272,0.02444649,87758.0,87742.0,0.011406]
[1766905516475,0.02444649,87757.0,87742.0,0.011406]
[1766905516664,0.02444649,87756.0,87742.0,0.011406]
[1766905516866,0.02444649,87755.0,87742.0,0.011406]
[1766905517076,0.02444649,87754.0,87742.0,0.011406]
[1766905517275,0.02444649,87753.0,87742.0,0.011406]
[1766905517478,0.02444649,87752.0,87742.0,0.011406]
[1766905517775,0.02444649,87751.0,87742.0,0.011406]
[1766905517978,0.02444649,87750.0,87742.0,0.011406]
[1766905518181,0.02444649,87749.0,87742.0,0.011406]
[1766905518477,0.011404,87759.0,87742.0,0.011406]
[1766905518673,0.02444643,87758.0,87742.0,0.011406]
[1766905518877,0.02444643,87757.0,87742.0,0.011406]
[1766905519080,0.02444643,87756.0,87742.0,0.011406]
[1766905519376,0.02444643,87755.0,87742.0,0.011406]
[1766905519566,0.011404,87759.0,87742.0,0.011406]
[1766905519567,0.02444643,87754.0,87742.0,0.011406]
[1766905519768,0.02444643,87753.0,87742.0,0.011406]
[1766905519964,0.02444643,87752.0,87742.0,0.011406]
[1766905520168,0.02444643,87751.0,87742.0,0.011406]
[1766905520364,0.02444643,87750.0,87742.0,0.011406]
[1766905520569,0.02444643,87749.0,87742.0,0.011406]
[1766905520769,0.011404,87759.0,87742.0,0.011406]
[1766905520971,0.02444529,87758.0,87742.0,0.011406]
[1766905521171,0.02444529,87757.0,87742.0,0.011406]
[1766905521471,0.02444529,87756.0,87742.0,0.011406]
[1766905521671,0.02444529,87755.0,87742.0,0.011406]
[1766905521872,0.02444529,87754.0,87742.0,0.011406]
[1766905522072,0.02444529,87753.0,87742.0,0.011406]
[1766905522273,0.02444529,87752.0,87742.0,0.011406]
[1766905522474,0.02444529,87751.0,87742.0,0.011406]
[1766905522681,0.02444529,87750.0,87742.0,0.011406]
[1766905522884,0.02444529,87749.0,87744.0,0.0114058]
[1766905523084,0.011404,87759.0,87744.0,0.0114058]
[1766905523282,0.02444526,87758.0,87744.0,0.0114058]
[1766905523577,0.02444526,87757.0,87744.0,0.0114058]
[1766905523777,0.02444526,87756.0,87744.0,0.0114058]
[1766905523977,0.02444526,87755.0,87744.0,0.0114058]
[1766905524175,0.02444526,87754.0,87738.0,0.154]
[1766905524382,0.02444526,87753.0,87743.0,0.0114059]
[1766905524584,0.02444526,87752.0,87743.0,0.0114059]
[1766905524775,0.0114038,87760.0,87743.0,0.0114059]
[1766905524776,0.02444526,87751.0,87743.0,0.0114059]
[1766905524975,0.02444526,87750.0,87743.0,0.0114059]
[1766905525276,0.0114038,87760.0,87743.0,0.0114059]
[1766905525581,0.0244454,87759.0,87743.0,0.0114059]
[1766905525773,0.0244454,87758.0,87743.0,0.0114059]
[1766905525972,0.0244454,87757.0,87743.0,0.0114059]
[1766905526169,0.0244454,87756.0,87743.0,0.0114059]
[1766905526373,0.0244454,87755.0,87743.0,0.0114059]
[1766905526574,0.0244454,87754.0,87743.0,0.0114059]
[1766905526784,0.0244454,87753.0,87743.0,0.0114059]
[1766905527084,0.0244454,87752.0,87743.0,0.0114059]
[1766905527294,0.0244454,87751.0,87743.0,0.0114059]
[1766905527474,0.12585375,87760.0,87743.0,0.0114059]
[1766905527781,0.02444502,87759.0,87743.0,0.0114059]
[1766905527984,0.02444502,87758.0,87743.0,0.0114059]
[1766905528184,0.02444502,87757.0,87743.0,0.0114059]
[1766905528378,0.02444502,87756.0,87743.0,0.0114059]
[1766905528578,0.02444502,87755.0,87743.0,0.0114059]
[1766905528782,0.02444502,87754.0,87743.0,0.0114059]
[1766905528981,0.02444502,87753.0,87743.0,0.0114059]
[1766905529178,0.02444502,87752.0,87743.0,0.0114059]
[1766905529484,0.02444502,87751.0,87743.0,0.0114059]
[1766905529686,0.12585375,87760.0,87743.0,0.0114059]
[1766905529880,0.02444459,87759.0,87743.0,0.0114059]
[1766905530072,0.02444459,87758.0,87743.0,0.0114059]
[1766905530274,0.02444459,87757.0,87743.0,0.0114059]
[1766905530475,0.02444459,87756.0,87743.0,0.0114059]
[1766905530783,0.12585375,87760.0,87743.0,0.0114059]
[1766905530784,0.02444459,87755.0,87743.0,0.0114059]
[1766905530982,0.02444459,87754.0,87743.0,0.0114059]